[Event "RUS-chT Premier 2019"]
[Site "Sochi"]
[Date "2019.05.07"]
[Round "6.27"]
[White "Kobalia, Mikhail"]
[Black "Geller, Jakov"]
[Result "1/2-1/2"]
[ECO "B47"]
[WhiteElo "2610"]
[BlackElo "2518"]
[Annotator "ChessBase"]
[PlyCount "84"]
[EventDate "2019.05.01"]
[EventType "team-tourn"]
[EventCountry "RUS"]
[SourceTitle "playchess.com"]
[Source "ChessBase"]
[SourceQuality "1"]
[TimeControl "40/5400+30:1800+30"]

1. e4 {[%emt 0:00:00]} c5 {[%emt 0:00:00]} 2. Nf3 {[%emt 0:00:00]} e6 {[%emt 0:00:00]} 3. d4 {[%emt 0:01:09]} cxd4 {[%emt 0:00:00]} 4. Nxd4 {[%emt 0:00:04]} Nc6 {[%emt 0:00:06]} 5. Nc3 {[%emt 0:00:09]} Qc7 {[%emt 0:00:17]} 6. g3 {[%emt 0:05:44]} a6 {[%emt 0:01:30]} 7. Bg2 {[%emt 0:00:13]} Nf6 {[%emt 0:00:11]} 8. O-O {[%emt 0:00:08]} Nxd4 {[%emt 0:02:24]} 9. Qxd4 {[%emt 0:00:05]} Bc5 {[%emt 0:00:07]} 10. Bf4 {[%emt 0:03:30]} d6 {[%emt 0:00:54]} 11. Qd2 {[%emt 0:01:08]} h6 {[%emt 0:02:02]} 12. Rad1 {[%emt 0:03:54]} e5 {[%emt 0:00:34]} 13. Be3 {[%emt 0:00:03]} Be6 {[%emt 0:00:18]} 14. Bxc5 {[%emt 0:02:27]} dxc5 {[%emt 0:00:50]} 15. f4 {[%emt 0:08:05]} O-O {[%emt 0:04:26]} 16. Nd5 {[%emt 0:02:22]} Bxd5 {[%emt 0:00:44]} 17. exd5 {[%emt 0:00:05]} Qd6 {[%emt 0:00:20]} 18. fxe5 {[%emt 0:01:22]} Qxe5 {[%emt 0:00:09]} 19. d6 {[%emt 0:05:47]} Qxb2 {[%emt 0:00:24]} 20. Rb1 {[%emt 0:00:29]} Qxa2 {[%emt 0:00:20]} 21. Rxb7 {[%emt 0:00:42]} Rad8 {[%emt 0:00:55]} 22. d7 {[%emt 0:06:25]} Qe6 {[%emt 0:08:12]} 23. Rd1 {[%emt 0:00:50]} a5 {[%emt 0:02:32]} 24. Bd5 {[%emt 0:09:07]} Nxd5 {[%emt 0:09:49]} 25. Qxd5 {[%emt 0:00:16]} Qe3+ {[%emt 0:10:43]} 26. Kh1 {[%emt 0:01:13]} c4 {[%emt 0:07:32]} 27. Rc7 {[%emt 0:12:14]} a4 {[%emt 0:08:22]} 28. Rf1 {[%emt 0:13:52]} Qe2 {[%emt 0:08:01]} 29. Qg2 {[%emt 0:11:50]} Qe6 {[%emt 0:09:12]} 30. Rd1 {[%emt 0:00:18]} a3 {[%emt 0:06:56]} 31. Ra7 {[%emt 0:01:04]} a2 {[%emt 0:11:39]} 32. Qd5 {[%emt 0:00:27]} c3 {[%emt 0:00:26]} 33. Ra4 {[%emt 0:07:39]} Kh7 {[%emt 0:03:21]} 34. Rxa2 {[%emt 0:01:38]} Rxd7 {[%emt 0:00:59]} 35. Qxd7 {[%emt 0:00:02]} Qxa2 {[%emt 0:01:41]} 36. Qd3+ {[%emt 0:00:06]} f5 {[%emt 0:00:32]} 37. Qxc3 {[%emt 0:00:28]} Qa8+ {[%emt 0:00:46]} 38. Kg1 {[%emt 0:00:06]} Rc8 {[%emt 0:00:05]} 39. Qd3 {[%emt 0:01:35]} Qa7+ {[%emt 0:00:15]} 40. Kh1 {[%emt 0:00:00]} Qb7+ {[%emt 0:00:00]} 41. Qd5 {[%emt 0:01:45]} Qxd5+ {[%emt 0:00:26]} 42. Rxd5 {[%emt 0:00:04]} Rxc2 {[%emt 0:00:05]} 1/2-1/2

[Event "RUS-chT Premier 2019"]
[Site "Sochi"]
[Date "2019.05.07"]
[Round "6.28"]
[White "Chernobay, Artem"]
[Black "Grachev, Boris"]
[Result "0-1"]
[ECO "B32"]
[WhiteElo "2503"]
[BlackElo "2615"]
[Annotator "ChessBase"]
[PlyCount "72"]
[EventDate "2019.05.01"]
[EventType "team-tourn"]
[EventCountry "RUS"]
[SourceTitle "playchess.com"]
[Source "ChessBase"]
[SourceQuality "1"]
[TimeControl "40/5400+30:1800+30"]

1. e4 {[%emt 0:00:00]} c5 {[%emt 0:00:00]} 2. Nf3 {[%emt 0:00:00]} Nc6 {[%emt 0:00:00]} 3. d4 {[%emt 0:00:06]} cxd4 {[%emt 0:00:00]} 4. Nxd4 {[%emt 0:00:05]} Qb6 {[%emt 0:00:02]} 5. Nb3 {[%emt 0:00:23]} Nf6 {[%emt 0:00:24]} 6. Nc3 {[%emt 0:00:12]} e6 {[%emt 0:00:08]} 7. a3 {[%emt 0:00:39]} Qc7 {[%emt 0:04:14]} 8. Qf3 {[%emt 0:07:11]} a6 {[%emt 0:05:40]} 9. Bf4 {[%emt 0:00:25]} Ne5 {[%emt 0:05:41]} 10. Qg3 {[%emt 0:02:13]} d6 {[%emt 0:00:21]} 11. Be2 {[%emt 0:00:15]} Bd7 {[%emt 0:07:40]} 12. h4 {[%emt 0:11:09]} h5 {[%emt 0:10:19]} 13. O-O-O {[%emt 0:19:01]} Rc8 {[%emt 0:08:22]} 14. Rd4 {[%emt 0:01:51]} Be7 {[%emt 0:03:56]} 15. Kb1 {[%emt 0:14:05]} O-O {[%emt 0:02:20]} 16. Bg5 {[%emt 0:03:10]} Bc6 {[%emt 0:11:53]} 17. Rc1 {[%emt 0:05:22]} Ng6 {[%emt 0:01:23]} 18. f3 {[%emt 0:09:49]} b5 {[%emt 0:07:44]} 19. Rd2 {[%emt 0:02:57]} Rb8 {[%emt 0:05:49]} 20. Na2 {[%emt 0:06:36]} a5 {[%emt 0:01:59]} 21. c4 {[%emt 0:01:17]} bxc4 {[%emt 0:03:01]} 22. Bxc4 {[%emt 0:00:32]} Ne5 {[%emt 0:05:18]} 23. Bh6 {[%emt 0:02:29]} Nfg4 24. fxg4 {[%emt 0:00:44]} gxh6 {[%emt 0:04:00]} 25. gxh5+ {[%emt 0:00:21]} Kh7 {[%emt 0:00:21]} 26. Bf1 {[%emt 0:02:58]} Rg8 {[%emt 0:01:50]} 27. Qh3 {[%emt 0:01:40]} Bxe4+ {[%emt 0:02:44]} 28. Ka1 {[%emt 0:03:35]} Qb6 {[%emt 0:00:20]} 29. Nd4 {[%emt 0:00:09]} Rg4 {[%emt 0:00:22]} 30. g3 {[%emt 0:03:27]} Rbg8 {[%emt 0:03:21]} 31. Rc3 {[%emt 0:00:17]} Bd5 {[%emt 0:00:53]} 32. Nf5 {[%emt 0:01:30]} exf5 {[%emt 0:02:49]} 33. Rxd5 {[%emt 0:00:03]} Qf2 {[%emt 0:00:10]} 34. Bd3 {[%emt 0:01:23]} Nxd3 {[%emt 0:01:28]} 35. Rcxd3 {[%emt 0:00:13]} Rxg3 {[%emt 0:01:28]} 36. Rxg3 {[%emt 0:00:04]} Qe1+ {[%emt 0:00:44]} 0-1

[Event "RUS-chT Premier 2019"]
[Site "Sochi"]
[Date "2019.05.07"]
[Round "6.29"]
[White "Popov, Ivan"]
[Black "Ofitserian, Boris"]
[Result "1-0"]
[ECO "B23"]
[WhiteElo "2600"]
[BlackElo "2413"]
[Annotator "ChessBase"]
[PlyCount "63"]
[EventDate "2019.05.01"]
[EventType "team-tourn"]
[EventCountry "RUS"]
[SourceTitle "playchess.com"]
[Source "ChessBase"]
[SourceQuality "1"]
[TimeControl "40/5400+30:1800+30"]

1. e4 {[%emt 0:00:00]} c5 {[%emt 0:00:00]} 2. Nc3 {[%emt 0:00:00]} d6 {[%emt 0:00:00]} 3. d4 {[%emt 0:00:00]} cxd4 {[%emt 0:00:21]} 4. Qxd4 {[%emt 0:00:04]} Nc6 {[%emt 0:00:14]} 5. Qd2 {[%emt 0:00:10]} g6 {[%emt 0:01:08]} 6. b3 {[%emt 0:00:10]} Bh6 {[%emt 0:01:11]} 7. f4 {[%emt 0:00:14]} Nf6 {[%emt 0:00:13]} 8. Bb2 {[%emt 0:00:15]} e5 {[%emt 0:02:05]} 9. g3 {[%emt 0:00:49]} O-O {[%emt 0:01:27]} 10. O-O-O {[%emt 0:00:13]} Be6 {[%emt 0:04:18]} 11. Kb1 {[%emt 0:02:36]} a5 {[%emt 0:02:10]} 12. a4 {[%emt 0:02:13]} Qb6 {[%emt 0:02:58]} 13. Bh3 {[%emt 0:00:35]} Nd4 {[%emt 0:13:44]} 14. Bxe6 {[%emt 0:10:11]} Nxe6 {[%emt 0:08:22]} 15. Nge2 {[%emt 0:20:17]} Rfd8 {[%emt 0:00:39]} 16. Nd5 {[%emt 0:17:26]} Nxd5 {[%emt 0:06:46]} 17. exd5 {[%emt 0:00:11]} Nc5 {[%emt 0:01:40]} 18. Nc3 {[%emt 0:01:08]} Qb4 {[%emt 0:10:29]} 19. h4 {[%emt 0:03:55]} Rac8 {[%emt 0:15:14]} 20. h5 {[%emt 0:01:07]} Bg7 {[%emt 0:00:29]} 21. hxg6 {[%emt 0:02:40]} fxg6 {[%emt 0:08:50]} 22. fxe5 {[%emt 0:06:53]} Bxe5 {[%emt 0:05:54]} 23. Rh4 {[%emt 0:00:36]} Qb6 {[%emt 0:00:17]} 24. Nb5 {[%emt 0:02:51]} Bxb2 {[%emt 0:00:25]} 25. Kxb2 {[%emt 0:00:10]} Rf8 {[%emt 0:00:16]} 26. Rxh7 {[%emt 0:11:31]} Nd3+ {[%emt 0:11:30]} 27. Qxd3 {[%emt 0:02:52]} Kxh7 {[%emt 0:00:26]} 28. Rh1+ {[%emt 0:00:46]} Kg7 {[%emt 0:00:04]} 29. Nd4 {[%emt 0:00:27]} Rf2 {[%emt 0:00:58]} 30. Qe4 {[%emt 0:00:49]} Qb4 {[%emt 0:01:18]} 31. Qe7+ {[%emt 0:01:40]} Rf7 {[%emt 0:00:23]} 32. Nf5+ {[%emt 0:00:14]} 1-0

[Event "RUS-chT Premier 2019"]
[Site "Sochi"]
[Date "2019.05.07"]
[Round "6.30"]
[White "Nozdrachev, Leonid"]
[Black "Gordievsky, Dmitry"]
[Result "0-1"]
[ECO "D85"]
[WhiteElo "2367"]
[BlackElo "2585"]
[Annotator "ChessBase"]
[PlyCount "70"]
[EventDate "2019.05.01"]
[EventType "team-tourn"]
[EventCountry "RUS"]
[SourceTitle "playchess.com"]
[Source "ChessBase"]
[SourceQuality "1"]
[TimeControl "40/5400+30:1800+30"]

1. d4 {[%emt 0:00:00]} Nf6 {[%emt 0:00:28]} 2. c4 {[%emt 0:00:00]} g6 {[%emt 0:00:51]} 3. Nc3 {[%emt 0:01:05]} d5 {[%emt 0:00:43]} 4. cxd5 {[%emt 0:00:24]} Nxd5 {[%emt 0:00:35]} 5. e4 {[%emt 0:00:35]} Nxc3 {[%emt 0:00:11]} 6. bxc3 {[%emt 0:00:17]} Bg7 {[%emt 0:00:21]} 7. Nf3 {[%emt 0:03:50]} O-O {[%emt 0:03:17]} 8. Be2 {[%emt 0:00:53]} c5 {[%emt 0:09:30]} 9. O-O {[%emt 0:00:33]} b6 {[%emt 0:04:33]} 10. Bg5 {[%emt 0:08:51]} Bb7 {[%emt 0:04:11]} 11. dxc5 {[%emt 0:10:31]} Qc7 {[%emt 0:10:11]} 12. cxb6 {[%emt 0:07:23]} axb6 {[%emt 0:00:07]} 13. e5 {[%emt 0:00:42]} Ra5 {[%emt 0:07:50]} 14. Qd4 {[%emt 0:14:36]} Nc6 {[%emt 0:15:11]} 15. Qh4 {[%emt 0:10:08]} Nxe5 {[%emt 0:00:45]} 16. Nd4 {[%emt 0:06:35]} e6 {[%emt 0:03:24]} 17. Be7 {[%emt 0:06:48]} g5 {[%emt 0:17:20]} 18. Bxg5 {[%emt 0:04:44]} Ng6 {[%emt 0:00:03]} 19. Qg4 {[%emt 0:01:23]} h5 {[%emt 0:00:41]} 20. Qxh5 {[%emt 0:03:24]} Qxc3 {[%emt 0:00:57]} 21. Rad1 {[%emt 0:14:43]} Bxd4 {[%emt 0:07:51]} 22. Qg4 {[%emt 0:01:56]} Qc5 {[%emt 0:02:09]} 23. h4 {[%emt 0:01:23]} Bg7 {[%emt 0:03:09]} 24. Bd2 {[%emt 0:00:28]} Ne5 {[%emt 0:01:06]} 25. Qg3 {[%emt 0:00:34]} Ra3 {[%emt 0:00:53]} 26. Be3 {[%emt 0:00:20]} Qc2 {[%emt 0:01:16]} 27. h5 {[%emt 0:00:51]} Qxe2 {[%emt 0:01:19]} 28. h6 {[%emt 0:00:09]} Qg4 {[%emt 0:01:52]} 29. hxg7 {[%emt 0:00:14]} Qxg7 {[%emt 0:00:04]} 30. Qxg7+ {[%emt 0:00:52]} Kxg7 {[%emt 0:00:01]} 31. Bxb6 {[%emt 0:00:33]} Rxa2 {[%emt 0:01:19]} 32. Bc5 {[%emt 0:00:28]} Rg8 {[%emt 0:00:32]} 33. Bd4 {[%emt 0:00:45]} Kh7 {[%emt 0:00:16]} 34. Bxe5 {[%emt 0:00:30]} Rxg2+ {[%emt 0:00:05]} 35. Kh1 {[%emt 0:00:05]} Rgxf2+ {[%emt 0:00:14]} 0-1

[Event "RUS-chT Premier 2019"]
[Site "Sochi"]
[Date "2019.05.08"]
[Round "7.3"]
[White "Geller, Jakov"]
[Black "Pershin, Denis"]
[Result "1/2-1/2"]
[ECO "B12"]
[WhiteElo "2518"]
[BlackElo "2409"]
[Annotator "RC"]
[PlyCount "81"]
[EventDate "2019.04.30"]
[EventType "team-tourn"]
[EventCountry "RUS"]
[SourceTitle "playchess.com"]
[Source "ChessBase"]
[SourceQuality "1"]
[TimeControl "40/5400+30:1800+30"]

1. e4 {[%emt 0:00:00]} c6 {[%emt 0:00:00]} 2. d4 {[%emt 0:00:00]} d5 {[%emt 0:00:00]} 3. e5 {[%emt 0:00:13]} Bf5 {[%emt 0:00:00]} 4. Nd2 {[%emt 0:00:51]} e6 {[%emt 0:00:17]} 5. Nb3 {[%emt 0:00:14]} Nd7 {[%emt 0:01:08]} 6. Be2 {[%emt 0:01:33]} c5 {[%emt 0:01:07]} 7. Nxc5 {[%emt 0:03:06]} Bxc5 {[%emt 0:01:42]} 8. dxc5 {[%emt 0:00:08]} Nxc5 {[%emt 0:01:43]} 9. Be3 {[%emt 0:01:43]} Nd7 {[%emt 0:00:37]} 10. f4 {[%emt 0:01:02]} Ne7 {[%emt 0:01:11]} 11. Nf3 {[%emt 0:00:13]} O-O {[%emt 0:02:30]} 12. O-O {[%emt 0:00:42]} Nc6 {[%emt 0:13:37]} 13. Bd3 {[%emt 0:08:54]} Bxd3 {[%emt 0:00:46]} 14. cxd3 {[%emt 0:00:07]} Rc8 {[%emt 0:02:10]} 15. Qb3 {[%emt 0:04:18]} b6 {[%emt 0:15:13]} 16. Rac1 {[%emt 0:05:49]} Qe7 {[%emt 0:03:10]} 17. Nd4 {[%emt 0:13:44]} Nxd4 {[%emt 0:00:59]} 18. Bxd4 {[%emt 0:00:05]} Nb8 {[%emt 0:01:57]} 19. Qa4 {[%emt 0:04:20]} Qb7 {[%emt 0:03:16]} 20. Bc3 {[%emt 0:05:46]} b5 {[%emt 0:04:05]} 21. Qd4 {[%emt 0:03:30]} Nc6 {[%emt 0:00:22]} 22. Qe3 {[%emt 0:02:11]} Ne7 {[%emt 0:07:07]} 23. a3 {[%emt 0:02:55]} Nf5 {[%emt 0:16:05]} 24. Qf2 {[%emt 0:01:10]} h5 {[%emt 0:02:02]} 25. d4 {[%emt 0:12:08]} Qb6 {[%emt 0:00:33]} 26. Bb4 {[%emt 0:01:24]} Rxc1 {[%emt 0:07:07]} 27. Rxc1 {[%emt 0:00:09]} Rb8 {[%emt 0:00:26]} 28. Bc5 {[%emt 0:00:50]} Qa5 {[%emt 0:00:12]} 29. Rc3 {[%emt 0:03:05]} Qa4 {[%emt 0:01:46]} 30. b3 {[%emt 0:01:33]} Qa5 {[%emt 0:00:05]} 31. Rh3 {[%emt 0:01:29]} g6 {[%emt 0:00:15]} 32. Rd3 {[%emt 0:01:26]} Rc8 {[%emt 0:00:51]} 33. g3 {[%emt 0:01:14]} Qd8 {[%emt 0:00:44]} 34. Qe2 {[%emt 0:03:16]} a5 {[%emt 0:00:33]} 35. Rd1 {[%emt 0:00:42]} Rb8 {[%emt 0:03:33]} 36. Kf2 {[%emt 0:00:16]} a4 {[%emt 0:00:06]} 37. b4 {[%emt 0:00:21]} Kg7 {[%emt 0:00:06]} 38. Rg1 {[%emt 0:00:57]} Qd7 {[%emt 0:00:28]} 39. Qd3 {[%emt 0:01:42]} Rh8 {[%emt 0:00:51]} 40. Ke1 {[%emt 0:00:00]} Kg8 {[%emt 0:00:00]} 41. Kd2 {[%emt 0:03:03]} 1/2-1/2

[Event "RUS-chT Premier 2019"]
[Site "Sochi"]
[Date "2019.05.08"]
[Round "7.4"]
[White "Shubin, Kirill"]
[Black "Chernobay, Artem"]
[Result "1/2-1/2"]
[ECO "B40"]
[WhiteElo "2404"]
[BlackElo "2503"]
[Annotator "RC"]
[PlyCount "96"]
[EventDate "2019.04.30"]
[EventType "team-tourn"]
[EventCountry "RUS"]
[SourceTitle "playchess.com"]
[Source "ChessBase"]
[SourceQuality "1"]
[TimeControl "40/5400+30:1800+30"]

1. e4 {[%emt 0:00:00]} c5 {[%emt 0:00:00]} 2. Nf3 {[%emt 0:00:00]} e6 {[%emt 0:00:00]} 3. g3 {[%emt 0:00:00]} Nc6 {[%emt 0:00:00]} 4. Bg2 {[%emt 0:00:00]} Nf6 {[%emt 0:00:10]} 5. Qe2 {[%emt 0:00:00]} e5 {[%emt 0:00:18]} 6. O-O {[%emt 0:00:00]} d6 {[%emt 0:00:10]} 7. c3 {[%emt 0:00:00]} Be7 {[%emt 0:06:57]} 8. Rd1 {[%emt 0:00:24]} O-O {[%emt 0:01:33]} 9. d4 {[%emt 0:00:02]} cxd4 {[%emt 0:02:48]} 10. cxd4 {[%emt 0:00:17]} exd4 {[%emt 0:01:46]} 11. Nxd4 {[%emt 0:02:53]} Bg4 {[%emt 0:05:24]} 12. Bf3 {[%emt 0:01:17]} Nxd4 {[%emt 0:15:45]} 13. Rxd4 {[%emt 0:00:07]} Qb6 {[%emt 0:03:47]} 14. Rd1 {[%emt 0:00:32]} Be6 {[%emt 0:01:30]} 15. Be3 {[%emt 0:04:01]} Qa5 {[%emt 0:00:55]} 16. Nc3 {[%emt 0:00:54]} a6 {[%emt 0:02:44]} 17. Rd4 {[%emt 0:07:26]} Rac8 {[%emt 0:02:13]} 18. Bf4 {[%emt 0:03:49]} Rfd8 {[%emt 0:15:59]} 19. Rad1 {[%emt 0:00:33]} Ne8 {[%emt 0:01:18]} 20. Nd5 {[%emt 0:04:16]} Bxd5 {[%emt 0:04:58]} 21. Rxd5 {[%emt 0:00:17]} Qb6 {[%emt 0:00:46]} 22. Bg4 {[%emt 0:04:30]} Ra8 {[%emt 0:03:52]} 23. Be3 {[%emt 0:00:21]} Qc6 {[%emt 0:00:55]} 24. Rc1 {[%emt 0:03:14]} Qa4 {[%emt 0:00:05]} 25. Bb6 {[%emt 0:01:28]} Rdb8 {[%emt 0:02:59]} 26. b3 {[%emt 0:00:20]} Qa3 {[%emt 0:00:09]} 27. Rc4 {[%emt 0:04:18]} Bd8 {[%emt 0:04:34]} 28. Ra5 {[%emt 0:01:27]} Qxa5 {[%emt 0:00:03]} 29. Bxa5 {[%emt 0:00:06]} Bxa5 {[%emt 0:00:02]} 30. Qc2 {[%emt 0:01:29]} d5 {[%emt 0:04:39]} 31. exd5 {[%emt 0:02:37]} Nd6 {[%emt 0:00:03]} 32. Rf4 {[%emt 0:07:45]} Bb6 {[%emt 0:00:19]} 33. Qc3 {[%emt 0:04:35]} a5 {[%emt 0:00:10]} 34. h4 {[%emt 0:01:25]} Re8 {[%emt 0:00:43]} 35. h5 {[%emt 0:00:37]} h6 {[%emt 0:02:36]} 36. Kg2 {[%emt 0:04:57]} Re7 {[%emt 0:01:29]} 37. a4 {[%emt 0:00:29]} Rae8 {[%emt 0:00:28]} 38. b4 {[%emt 0:00:28]} Ne4 {[%emt 0:03:41]} 39. Qd3 {[%emt 0:03:29]} Bc7 {[%emt 0:09:51]} 40. Rxe4 {[%emt 0:00:00]} Rxe4 {[%emt 0:00:00]} 41. d6 {[%emt 0:00:42]} Bxd6 {[%emt 0:00:32]} 42. Bd7 {[%emt 0:02:33]} Bxb4 {[%emt 0:00:19]} 43. Bxe8 {[%emt 0:00:17]} Rxe8 {[%emt 0:00:04]} 44. f4 {[%emt 0:00:55]} b6 {[%emt 0:06:35]} 45. Qd7 {[%emt 0:01:27]} Re6 {[%emt 0:01:52]} 46. Qc8+ {[%emt 0:00:17]} Kh7 {[%emt 0:00:52]} 47. Qd7 {[%emt 0:00:49]} Kg8 {[%emt 0:01:55]} 48. Kf3 {[%emt 0:00:31]} Bc5 {[%emt 0:01:32] Ke4} 1/2-1/2

[Event "RUS-chT Premier 2019"]
[Site "Sochi"]
[Date "2019.05.08"]
[Round "7.5"]
[White "Bykov, Oleg"]
[Black "Saveliev, Alexei"]
[Result "1-0"]
[ECO "E35"]
[WhiteElo "2395"]
[BlackElo "2367"]
[Annotator "NA RC"]
[PlyCount "87"]
[EventDate "2019.04.30"]
[EventType "team-tourn"]
[EventCountry "RUS"]
[SourceTitle "playchess.com"]
[Source "ChessBase"]
[SourceQuality "1"]
[TimeControl "40/5400+30:1800+30"]

1. d4 {[%emt 0:00:00]} Nf6 {[%emt 0:00:00]} 2. c4 {[%emt 0:00:00]} e6 {[%emt 0:00:00]} 3. Nc3 {[%emt 0:00:26]} Bb4 {[%emt 0:00:00]} 4. Qc2 {[%emt 0:00:05]} d5 {[%emt 0:00:01]} 5. cxd5 {[%emt 0:00:11]} exd5 {[%emt 0:00:04]} 6. Bg5 {[%emt 0:00:15]} h6 {[%emt 0:00:07]} 7. Bh4 {[%emt 0:00:04]} O-O {[%emt 0:00:11]} 8. e3 {[%emt 0:00:24]} Be6 {[%emt 0:01:33]} 9. Bd3 {[%emt 0:09:00]} c6 {[%emt 0:06:28]} 10. Nge2 {[%emt 0:02:54]} Bd6 {[%emt 0:03:09]} 11. Bg3 {[%emt 0:08:43]} Re8 {[%emt 0:01:06]} 12. O-O {[%emt 0:02:26]} Bxg3 {[%emt 0:07:02]} 13. Nxg3 {[%emt 0:00:41]} Qd6 {[%emt 0:01:25]} 14. Rab1 {[%emt 0:05:32]} Nbd7 {[%emt 0:01:32]} 15. b4 {[%emt 0:00:26]} Rac8 {[%emt 0:04:44]} 16. f3 {[%emt 0:05:37]} Nf8 {[%emt 0:10:58]} 17. Nce2 {[%emt 0:04:47]} b6 {[%emt 0:10:44]} 18. e4 {[%emt 0:05:44]} dxe4 {[%emt 0:01:24]} 19. fxe4 {[%emt 0:00:05]} Ng4 {[%emt 0:00:13]} 20. Qd2 {[%emt 0:02:35]} Red8 {[%emt 0:10:44]} 21. Rbd1 {[%emt 0:03:25]} c5 {[%emt 0:02:36]} 22. h3 {[%emt 0:11:33]} c4 {[%emt 0:00:00]} 23. Bc2 {[%emt 0:04:07]} Ne5 {[%emt 0:01:48]} 24. Qc3 {[%emt 0:11:08]} Nd3 {[%emt 0:07:39]} 25. Nh5 {[%emt 0:00:30]} f6 26. a3 {[%emt 0:03:32]} Nh7 {[%emt 0:10:12]} 27. Bxd3 {[%emt 0:02:30]} cxd3 {[%emt 0:00:47]} 28. Qxd3 {[%emt 0:00:02]} Bc4 {[%emt 0:01:10]} 29. Qe3 {[%emt 0:00:11]} Re8 {[%emt 0:02:22]} 30. Rfe1 {[%emt 0:02:46]} Bf7 {[%emt 0:03:41]} 31. Nhg3 {[%emt 0:00:18]} Rc2 {[%emt 0:02:15]} 32. Nf5 {[%emt 0:01:53]} Qc7 {[%emt 0:00:24]} 33. d5 {[%emt 0:03:23]} Ng5 {[%emt 0:03:26]} 34. d6 {[%emt 0:01:38]} Qd7 {[%emt 0:01:51]} 35. Neg3 {[%emt 0:01:43]} Re5 {[%emt 0:01:27]} 36. h4 {[%emt 0:01:05]} Ne6 {[%emt 0:01:27]} 37. Rc1 {[%emt 0:02:30]} Ra2 {[%emt 0:01:48]} 38. Ne7+ {[%emt 0:01:23]} Kh7 {[%emt 0:00:26]} 39. Ngf5 {[%emt 0:00:57]} Bh5 {[%emt 0:02:44]} 40. Qg3 {[%emt 0:00:00]} g6 {[%emt 0:00:00]} 41. Nd5 {[%emt 0:09:06]} Qf7 {[%emt 0:04:28]} 42. Nd4 {[%emt 0:03:31]} Ng7 {[%emt 0:02:16]} 43. Rc7 {[%emt 0:01:19]} Qf8 {[%emt 0:00:05]} 44. Rf1 {[%emt 0:01:10]} 1-0

[Event "RUS-chT Premier 2019"]
[Site "Sochi"]
[Date "2019.05.08"]
[Round "7.6"]
[White "Timerkhanov, Alexander"]
[Black "Ofitserian, Boris"]
[Result "1/2-1/2"]
[ECO "A45"]
[WhiteElo "2366"]
[BlackElo "2413"]
[Annotator "RC"]
[PlyCount "165"]
[EventDate "2019.04.30"]
[EventType "team-tourn"]
[EventCountry "RUS"]
[SourceTitle "playchess.com"]
[Source "ChessBase"]
[SourceQuality "1"]
[TimeControl "40/5400+30:1800+30"]

1. d4 {[%emt 0:00:00]} Nf6 {[%emt 0:00:00]} 2. Bg5 {[%emt 0:00:00]} d5 {[%emt 0:00:00]} 3. Nd2 {[%emt 0:00:00]} g6 {[%emt 0:00:03]} 4. Bxf6 {[%emt 0:06:53]} exf6 {[%emt 0:00:04]} 5. g3 {[%emt 0:00:36]} c6 {[%emt 0:00:02]} 6. e3 {[%emt 0:01:33]} Bd6 {[%emt 0:00:22]} 7. Bg2 {[%emt 0:00:59]} Be6 {[%emt 0:00:21]} 8. Ne2 {[%emt 0:00:51]} Nd7 {[%emt 0:01:19]} 9. Nf4 {[%emt 0:11:39]} Bxf4 {[%emt 0:15:29]} 10. exf4 {[%emt 0:00:22]} Qb6 {[%emt 0:00:42]} 11. Nb3 {[%emt 0:00:51]} a5 {[%emt 0:00:16]} 12. a4 {[%emt 0:00:39]} h5 {[%emt 0:01:08]} 13. h3 {[%emt 0:14:45]} Kf8 {[%emt 0:06:18]} 14. O-O {[%emt 0:01:22]} h4 {[%emt 0:08:34]} 15. g4 {[%emt 0:00:39]} f5 {[%emt 0:00:11]} 16. g5 {[%emt 0:01:00]} Kg7 {[%emt 0:00:05]} 17. Re1 {[%emt 0:01:19]} Rhe8 {[%emt 0:09:40]} 18. Qd2 {[%emt 0:10:23]} Qc7 {[%emt 0:19:50]} 19. Nc1 {[%emt 0:06:43]} c5 {[%emt 0:06:21]} 20. dxc5 {[%emt 0:03:43]} Nxc5 {[%emt 0:00:05]} 21. Qc3+ {[%emt 0:02:05]} Kg8 {[%emt 0:01:10]} 22. Nd3 {[%emt 0:10:57]} Rac8 {[%emt 0:00:32]} 23. Ne5 {[%emt 0:00:25]} Nd7 {[%emt 0:05:43]} 24. Qxc7 {[%emt 0:07:08]} Rxc7 {[%emt 0:00:02]} 25. c3 {[%emt 0:01:00]} Nxe5 {[%emt 0:18:17]} 26. Rxe5 {[%emt 0:00:04]} Rd8 {[%emt 0:01:33]} 27. Rd1 {[%emt 0:07:22]} Rc5 {[%emt 0:01:04]} 28. Rd4 {[%emt 0:00:53]} b6 {[%emt 0:02:39]} 29. Re3 {[%emt 0:02:06]} Rc4 {[%emt 0:00:59]} 30. Red3 {[%emt 0:00:37]} Rd7 {[%emt 0:01:29]} 31. Kf1 {[%emt 0:00:56]} Kf8 {[%emt 0:00:23]} 32. Ke2 {[%emt 0:00:10]} Ke7 {[%emt 0:00:32]} 33. Ke3 {[%emt 0:00:41]} Rxd4 {[%emt 0:00:43]} 34. Kxd4 {[%emt 0:00:47]} Kd6 {[%emt 0:00:12]} 35. Re3 {[%emt 0:01:09]} Rc7 {[%emt 0:00:22]} 36. Bf1 {[%emt 0:00:41]} Bd7 {[%emt 0:00:50]} 37. b3 {[%emt 0:00:37]} Rc5 {[%emt 0:00:09]} 38. Re5 {[%emt 0:00:21]} Bc6 {[%emt 0:00:49]} 39. Be2 {[%emt 0:04:29]} Kd7 {[%emt 0:00:32]} 40. Bd3 {[%emt 0:00:00]} Kd6 {[%emt 0:00:00]} 41. Re1 {[%emt 0:03:05]} Bd7 {[%emt 0:01:24]} 42. Bf1 {[%emt 0:05:20]} Be6 {[%emt 0:01:47]} 43. Bb5 {[%emt 0:01:54]} Rc8 {[%emt 0:02:12]} 44. Bd3 {[%emt 0:03:05]} Bd7 {[%emt 0:00:57]} 45. Re5 {[%emt 0:00:37]} Be6 {[%emt 0:00:05]} 46. Bb5 {[%emt 0:01:36]} Rc5 {[%emt 0:01:08]} 47. Re3 {[%emt 0:02:30]} Rc7 {[%emt 0:00:41]} 48. Re2 {[%emt 0:00:29]} Rc8 {[%emt 0:00:36]} 49. Rb2 {[%emt 0:00:43]} Rc7 {[%emt 0:00:47]} 50. Rb1 {[%emt 0:03:02]} Rc8 {[%emt 0:01:40]} 51. Rb2 {[%emt 0:03:23]} Rc7 {[%emt 0:00:14]} 52. b4 {[%emt 0:00:29]} Bd7 {[%emt 0:00:38]} 53. bxa5 {[%emt 0:02:16]} bxa5 {[%emt 0:00:11]} 54. Bd3 {[%emt 0:04:02]} Bxa4 {[%emt 0:00:12]} 55. Ra2 {[%emt 0:00:04]} Bb3 {[%emt 0:00:16]} 56. Rxa5 {[%emt 0:00:18]} Bc4 {[%emt 0:00:04]} 57. Ra4 {[%emt 0:00:51]} Bxd3 {[%emt 0:01:36]} 58. Kxd3 {[%emt 0:00:01]} Rb7 {[%emt 0:03:12]} 59. Ra6+ {[%emt 0:00:24]} Ke7 {[%emt 0:00:31]} 60. Ra2 {[%emt 0:02:11]} Rc7 {[%emt 0:02:05]} 61. Ra4 {[%emt 0:02:38]} Rb7 {[%emt 0:00:51]} 62. Kd4 {[%emt 0:01:10]} Rb2 {[%emt 0:00:47]} 63. f3 {[%emt 0:00:38]} Rh2 {[%emt 0:01:16]} 64. Ke5 {[%emt 0:01:44]} Rxh3 {[%emt 0:00:14]} 65. Ra7+ {[%emt 0:00:03]} Ke8 {[%emt 0:00:19]} 66. Kf6 {[%emt 0:00:20]} Rxf3 {[%emt 0:00:17]} 67. Re7+ {[%emt 0:00:29]} Kd8 {[%emt 0:00:24]} 68. Rxf7 {[%emt 0:00:04]} Rxf4 {[%emt 0:01:12]} 69. Kxg6 {[%emt 0:00:03]} Ke8 {[%emt 0:09:18]} 70. Kf6 {[%emt 0:03:09]} Rc4 {[%emt 0:04:44]} 71. g6 {[%emt 0:00:12]} Rc6+ {[%emt 0:01:16]} 72. Kg7 {[%emt 0:00:48]} Rxc3 {[%emt 0:03:09]} 73. Rxf5 {[%emt 0:00:57]} h3 {[%emt 0:02:03]} 74. Kh7 {[%emt 0:00:29]} Rg3 {[%emt 0:01:29]} 75. Rh5 {[%emt 0:00:53]} Kf8 {[%emt 0:00:31]} 76. Rf5+ {[%emt 0:00:20]} Ke7 {[%emt 0:00:08]} 77. Rxd5 {[%emt 0:00:33]} h2 {[%emt 0:00:19]} 78. Rh5 {[%emt 0:00:16]} Rg2 {[%emt 0:00:33]} 79. g7 {[%emt 0:00:54]} Kf7 {[%emt 0:00:10]} 80. Rf5+ {[%emt 0:00:04]} Ke7 {[%emt 0:00:23]} 81. Rh5 {[%emt 0:00:34]} Kf7 {[%emt 0:00:06]} 82. Kh8 {[%emt 0:00:54]} Rxg7 {[%emt 0:00:12]} 83. Rxh2 {[%emt 0:00:08]} 1/2-1/2